Workbook

Sheet Assumptions
A1: Assumptions
B2: Subprime Debt Assumptions
D3: Rate Charged on Sub-prime Loans | E3: 0.07
D4: Subprime Repayment Years | E4: 30 | I4: Equity IRR | J4: =H65 -> 0.09531784769
D5: Initial PD | E5: 0.02 | I5: Debt IRR | J5: =H68 -> 0.035
D6: Years of High Default | E6: 5
D7: Stable PD | E7: 0.01
D8: LGD | E8: 0.6
D9: Delay in Recoveries | E9: 3
B10: Financial Structure Assumptions
D11: Amount of Subprime Loans | E11: 1000
D12: Loans/Equity | E12: 10
D13: Equity to Assets | E13: =1/E12 -> 0.1
D14: Interest Rate on Top-tier Debt | E14: 0.035
D15: Fees | E15: 0.07
B16: Time Line
D17: Period | H17: 0 | I17: =H17+1 -> 1 | J17: =I17+1 -> 2 | K17: 3 | L17: 4 | M17: 5 | N17: 6 | O17: 7 | P17: 8 | Q17: 9 | R17: 10 | S17: 11 | T17: 12 | U17: 13 | V17: 14 | W17: 15 | X17: 16 | Y17: 17 | Z17: 18 | AA17: 19 | AB17: 20 | AC17: 21 | AD17: 22 | AE17: 23 | AF17: 24 | AG17: 25 | AH17: 26 | AI17: 27 | AJ17: 28 | AK17: 29 | AL17: 30
D18: High Default Period | F18: =E6 -> 5 | I18: =I17<=$F$18 -> TRUE | J18: =J17<=$F$18 -> TRUE | K18: TRUE | L18: TRUE | M18: TRUE | N18: FALSE | O18: FALSE | P18: FALSE | Q18: FALSE | R18: FALSE | S18: FALSE | T18: FALSE | U18: FALSE | V18: FALSE | W18: FALSE | X18: FALSE | Y18: FALSE | Z18: FALSE | AA18: FALSE | AB18: FALSE | AC18: FALSE | AD18: FALSE | AE18: FALSE | AF18: FALSE | AG18: FALSE | AH18: FALSE | AI18: FALSE | AJ18: FALSE | AK18: FALSE | AL18: FALSE
B19: Annual Assumptions
D20: PD | F20: =E5 -> 0.02 | G20: =E7 -> 0.01 | I20: =I18*$F$20+NOT(I18)*$G$20 -> 0.02 | J20: =J18*$F$20+NOT(J18)*$G$20 -> 0.02 | K20: 0.02 | L20: 0.02 | M20: 0.02 | N20: 0.01 | O20: 0.01 | P20: 0.01 | Q20: 0.01 | R20: 0.01 | S20: 0.01 | T20: 0.01 | U20: 0.01 | V20: 0.01 | W20: 0.01 | X20: 0.01 | Y20: 0.01 | Z20: 0.01 | AA20: 0.01 | AB20: 0.01 | AC20: 0.01 | AD20: 0.01 | AE20: 0.01 | AF20: 0.01 | AG20: 0.01 | AH20: 0.01 | AI20: 0.01 | AJ20: 0.01 | AK20: 0.01 | AL20: 0.01
D21: Cumulative Defaults Index | H21: 1 | I21: =H21*(1+I20) -> 1.02 | J21: =I21*(1+J20) -> 1.0404 | K21: 1.061208 | L21: 1.08243216 | M21: 1.104080803 | N21: 1.115121611 | O21: 1.126272827 | P21: 1.137535556 | Q21: 1.148910911 | R21: 1.16040002 | S21: 1.17200402 | T21: 1.183724061 | U21: 1.195561301 | V21: 1.207516914 | W21: 1.219592083 | X21: 1.231788004 | Y21: 1.244105884 | Z21: 1.256546943 | AA21: 1.269112413 | AB21: 1.281803537 | AC21: 1.294621572 | AD21: 1.307567788 | AE21: 1.320643466 | AF21: 1.3338499 | AG21: 1.347188399 | AH21: 1.360660283 | AI21: 1.374266886 | AJ21: 1.388009555 | AK21: 1.401889651 | AL21: 1.415908547
D22: Cumulative Defaults | I22: =I21-1 -> 0.02 | J22: =J21-1 -> 0.0404 | K22: 0.061208 | L22: 0.08243216 | M22: 0.1040808032 | N22: 0.1151216112 | O22: 0.1262728273 | P22: 0.1375355556 | Q22: 0.1489109112 | R22: 0.1604000203 | S22: 0.1720040205 | T22: 0.1837240607 | U22: 0.1955613013 | V22: 0.2075169143 | W22: 0.2195920835 | X22: 0.2317880043 | Y22: 0.2441058843 | Z22: 0.2565469432 | AA22: 0.2691124126 | AB22: 0.2818035367 | AC22: 0.2946215721 | AD22: 0.3075677878 | AE22: 0.3206434657 | AF22: 0.3338499004 | AG22: 0.3471883994 | AH22: 0.3606602834 | AI22: 0.3742668862 | AJ22: 0.3880095551 | AK22: 0.4018896506 | AL22: 0.4159085471
D23: Loans being paid | H23: 1 | I23: =H23*(1-I20) -> 0.98 | J23: =I23*(1-J20) -> 0.9604 | K23: 0.941192 | L23: 0.92236816 | M23: 0.9039207968 | N23: 0.8948815888 | O23: 0.8859327729 | P23: 0.8770734452 | Q23: 0.8683027108 | R23: 0.8596196837 | S23: 0.8510234868 | T23: 0.8425132519 | U23: 0.8340881194 | V23: 0.8257472382 | W23: 0.8174897659 | X23: 0.8093148682 | Y23: 0.8012217195 | Z23: 0.7932095023 | AA23: 0.7852774073 | AB23: 0.7774246332 | AC23: 0.7696503869 | AD23: 0.761953883 | AE23: 0.7543343442 | AF23: 0.7467910007 | AG23: 0.7393230907 | AH23: 0.7319298598 | AI23: 0.7246105612 | AJ23: 0.7173644556 | AK23: 0.7101908111 | AL23: 0.703088903
B24: Revenues
C25: Subprime Loan Balance
D26: Opening Balance | I26: =H29 -> 1000 | J26: =I29 -> 969.6253246 | K26: 939.3539334 | L26: 909.1592563 | M26: 879.0140634 | N26: 848.8904208 | O26: 827.1143339 | P26: 804.768078 | Q26: 781.8106305 | R26: 758.1986083 | S26: 733.886127 | T26: 708.8246523 | U26: 682.9628413 | V26: 656.246376 | W26: 628.6177859 | X26: 600.0162605 | Y26: 570.3774502 | Z26: 539.6332562 | AA26: 507.7116073 | AB26: 474.5362236 | AC26: 440.0263665 | AD26: 404.0965734 | AE26: 366.6563771 | AF26: 327.6100084 | AG26: 286.856081 | AH26: 244.2872577 | AI26: 199.789897 | AJ26: 153.2436788 | AK26: 104.5212075 | AL26: 53.48759184
D27: Less: Repayments | F27: =E4 -> 30 | I27: =PPMT($F$30,I17,$F$27,-$H$29)*I23 -> 10.37467544 | J27: =PPMT($F$30,J17,$F$27,-$H$29)*J23 -> 10.87888467 | K27: 11.40759846 | L27: 11.96200775 | M27: 12.54336132 | N27: 13.28718265 | O27: 14.07511258 | P27: 14.90976676 | Q27: 15.79391593 | R27: 16.73049514 | S27: 17.7226135 | T27: 18.77356448 | U27: 19.88683686 | V27: 21.06612628 | W27: 22.31534757 | X27: 23.63864768 | Y27: 25.04041949 | Z27: 26.52531637 | AA27: 28.09826763 | AB27: 29.7644949 | AC27: 31.52952944 | AD27: 33.39923054 | AE27: 35.37980491 | AF27: 37.47782734 | AG27: 39.7002625 | AH27: 42.05448807 | AI27: 44.54831921 | AJ27: 47.19003454 | AK27: 49.98840359 | AL27: 52.95271592
D28: Less: Default | I28: =I26*I20 -> 20 | J28: =J26*J20 -> 19.39250649 | K28: 18.78707867 | L28: 18.18318513 | M28: 17.58028127 | N28: 8.488904208 | O28: 8.271143339 | P28: 8.04768078 | Q28: 7.818106305 | R28: 7.581986083 | S28: 7.33886127 | T28: 7.088246523 | U28: 6.829628413 | V28: 6.56246376 | W28: 6.286177859 | X28: 6.000162605 | Y28: 5.703774502 | Z28: 5.396332562 | AA28: 5.077116073 | AB28: 4.745362236 | AC28: 4.400263665 | AD28: 4.040965734 | AE28: 3.666563771 | AF28: 3.276100084 | AG28: 2.86856081 | AH28: 2.442872577 | AI28: 1.99789897 | AJ28: 1.532436788 | AK28: 1.045212075 | AL28: 0.5348759184
D29: Closing Balance | H29: =E11 -> 1000 | I29: =I26-I27-I28 -> 969.6253246 | J29: =J26-J27-J28 -> 939.3539334 | K29: 909.1592563 | L29: 879.0140634 | M29: 848.8904208 | N29: 827.1143339 | O29: 804.768078 | P29: 781.8106305 | Q29: 758.1986083 | R29: 733.886127 | S29: 708.8246523 | T29: 682.9628413 | U29: 656.246376 | V29: 628.6177859 | W29: 600.0162605 | X29: 570.3774502 | Y29: 539.6332562 | Z29: 507.7116073 | AA29: 474.5362236 | AB29: 440.0263665 | AC29: 404.0965734 | AD29: 366.6563771 | AE29: 327.6100084 | AF29: 286.856081 | AG29: 244.2872577 | AH29: 199.789897 | AI29: 153.2436788 | AJ29: 104.5212075 | AK29: 53.48759184 | AL29: 3.22297744e-13
D30: Interest Income | F30: =E3 -> 0.07 | I30: =I26*$F$30 -> 70 | J30: =J26*$F$30 -> 67.87377272 | K30: 65.75477534 | L30: 63.64114794 | M30: 61.53098444 | N30: 59.42232946 | O30: 57.89800338 | P30: 56.33376546 | Q30: 54.72674413 | R30: 53.07390258 | S30: 51.37202889 | T30: 49.61772566 | U30: 47.80739889 | V30: 45.93724632 | W30: 44.00324502 | X30: 42.00113824 | Y30: 39.92642152 | Z30: 37.77432794 | AA30: 35.53981251 | AB30: 33.21753565 | AC30: 30.80184565 | AD30: 28.28676014 | AE30: 25.6659464 | AF30: 22.93270059 | AG30: 20.07992567 | AH30: 17.10010804 | AI30: 13.98529279 | AJ30: 10.72705752 | AK30: 7.316484525 | AL30: 3.744131429
C31: Recoveries of Defaults
D32: Default | I32: =I28 -> 20 | J32: =J28 -> 19.39250649 | K32: 18.78707867 | L32: 18.18318513 | M32: 17.58028127 | N32: 8.488904208 | O32: 8.271143339 | P32: 8.04768078 | Q32: 7.818106305 | R32: 7.581986083 | S32: 7.33886127 | T32: 7.088246523 | U32: 6.829628413 | V32: 6.56246376 | W32: 6.286177859 | X32: 6.000162605 | Y32: 5.703774502 | Z32: 5.396332562 | AA32: 5.077116073 | AB32: 4.745362236 | AC32: 4.400263665 | AD32: 4.040965734 | AE32: 3.666563771 | AF32: 3.276100084 | AG32: 2.86856081 | AH32: 2.442872577 | AI32: 1.99789897 | AJ32: 1.532436788 | AK32: 1.045212075 | AL32: 0.5348759184
D33: Loss on Default | F33: =E8 -> 0.6 | I33: =I32*$F$33 -> 12 | J33: =J32*$F$33 -> 11.63550389 | K33: 11.2722472 | L33: 10.90991108 | M33: 10.54816876 | N33: 5.093342525 | O33: 4.962686004 | P33: 4.828608468 | Q33: 4.690863783 | R33: 4.54919165 | S33: 4.403316762 | T33: 4.252947914 | U33: 4.097777048 | V33: 3.937478256 | W33: 3.771706716 | X33: 3.600097563 | Y33: 3.422264701 | Z33: 3.237799537 | AA33: 3.046269644 | AB33: 2.847217342 | AC33: 2.640158199 | AD33: 2.42457944 | AE33: 2.199938263 | AF33: 1.96566005 | AG33: 1.721136486 | AH33: 1.465723546 | AI33: 1.198739382 | AJ33: 0.919462073 | AK33: 0.627127245 | AL33: 0.320925551
D34: Delayed Recoveries | F34: =E9 -> 3 | I34: =IF(I17>=$F$34,OFFSET(I33,0,-$F$34)) -> FALSE | J34: =IF(J17>=$F$34,OFFSET(J33,0,-$F$34)) -> FALSE | K34: 0 | L34: 12 | M34: 11.63550389 | N34: 11.2722472 | O34: 10.90991108 | P34: 10.54816876 | Q34: 5.093342525 | R34: 4.962686004 | S34: 4.828608468 | T34: 4.690863783 | U34: 4.54919165 | V34: 4.403316762 | W34: 4.252947914 | X34: 4.097777048 | Y34: 3.937478256 | Z34: 3.771706716 | AA34: 3.600097563 | AB34: 3.422264701 | AC34: 3.237799537 | AD34: 3.046269644 | AE34: 2.847217342 | AF34: 2.640158199 | AG34: 2.42457944 | AH34: 2.199938263 | AI34: 1.96566005 | AJ34: 1.721136486 | AK34: 1.465723546 | AL34: 1.198739382
B35: Sources and Uses
C36: Uses of Funds
D37: Purchase of Subprime Loans | H37: =H29 -> 1000
D38: Fees | F38: =E15 -> 0.07 | H38: =H37*F38 -> 70
D39: Total Uses | H39: =SUM(H37:H38) -> 1070
C41: Sources of Funds
D42: Debt | H42: =H39-H43 -> 963 | I42: =H42/H44 -> 0.9
D43: Equity | H43: =H39/E12 -> 107 | I43: =H43/H39 -> 0.1
D44: Total Souces | H44: =SUM(H42:H43) -> 1070 | I44: =H44/H44 -> 1
B46: Debt Schedule - Top-tier AAA Debt
C47: Opening Balance | I47: =H50 -> 963 | J47: =I50 -> 916.3303246 | K47: 869.6492285 | L47: 822.9245777 | M47: 764.1237823 | N47: 705.158265 | O47: 645.857045 | P47: 585.5790145 | Q47: 524.282579 | R47: 467.0184667 | S47: 408.5970293 | T47: 348.9746745 | U47: 288.1066342 | V47: 225.946939 | W47: 162.4483925 | X47: 97.56254569 | Y47: 31.23967183 | Z47: 0 | AA47: 0 | AB47: 0 | AC47: 0 | AD47: 0 | AE47: 0 | AF47: 0 | AG47: 0 | AH47: 0 | AI47: 0 | AJ47: 0 | AK47: 0 | AL47: 0
C48: Add: Defaults on Interest | I48: =I51-I58 -> 0 | J48: =J51-J58 -> 0 | K48: 0 | L48: 0 | M48: 0 | N48: 0 | O48: 0 | P48: 0 | Q48: 0 | R48: 0 | S48: 0 | T48: 0 | U48: 0 | V48: 0 | W48: 0 | X48: 0 | Y48: 0 | Z48: 0 | AA48: 0 | AB48: 0 | AC48: 0 | AD48: 0 | AE48: 0 | AF48: 0 | AG48: 0 | AH48: 0 | AI48: 0 | AJ48: 0 | AK48: 0 | AL48: 0
C49: Less: Repayment | I49: =I60 -> 46.66967544 | J49: =J60 -> 46.68109603 | K49: 46.7246508 | L49: 58.80079547 | M49: 58.96551728 | N49: 59.30122003 | O49: 60.27803046 | P49: 61.29643547 | Q49: 57.26411232 | R49: 58.42143739 | S49: 59.62235484 | T49: 60.86804032 | U49: 62.1596952 | V49: 63.4985465 | W49: 64.88584676 | X49: 66.32287387 | Y49: 31.23967183 | Z49: 0 | AA49: 0 | AB49: 0 | AC49: 0 | AD49: 0 | AE49: 0 | AF49: 0 | AG49: 0 | AH49: 0 | AI49: 0 | AJ49: 0 | AK49: 0 | AL49: 0
C50: Closing Balance | H50: =H42 -> 963 | I50: =I47+I48-I49 -> 916.3303246 | J50: =J47+J48-J49 -> 869.6492285 | K50: 822.9245777 | L50: 764.1237823 | M50: 705.158265 | N50: 645.857045 | O50: 585.5790145 | P50: 524.282579 | Q50: 467.0184667 | R50: 408.5970293 | S50: 348.9746745 | T50: 288.1066342 | U50: 225.946939 | V50: 162.4483925 | W50: 97.56254569 | X50: 31.23967183 | Y50: 0 | Z50: 0 | AA50: 0 | AB50: 0 | AC50: 0 | AD50: 0 | AE50: 0 | AF50: 0 | AG50: 0 | AH50: 0 | AI50: 0 | AJ50: 0 | AK50: 0 | AL50: 0
C51: Interest Expense | F51: =E14 -> 0.035 | I51: =I47*$F$51 -> 33.705 | J51: =J47*$F$51 -> 32.07156136 | K51: 30.437723 | L51: 28.80236022 | M51: 26.74433238 | N51: 24.68053927 | O51: 22.60499657 | P51: 20.49526551 | Q51: 18.34989027 | R51: 16.34564633 | S51: 14.30089603 | T51: 12.21411361 | U51: 10.0837322 | V51: 7.908142864 | W51: 5.685693736 | X51: 3.414689099 | Y51: 1.093388514 | Z51: 0 | AA51: 0 | AB51: 0 | AC51: 0 | AD51: 0 | AE51: 0 | AF51: 0 | AG51: 0 | AH51: 0 | AI51: 0 | AJ51: 0 | AK51: 0 | AL51: 0
B53: Cash Flow Waterfall
C54: Revenues from Interest Income on Subprime | I54: =I30 -> 70 | J54: =J30 -> 67.87377272 | K54: 65.75477534 | L54: 63.64114794 | M54: 61.53098444 | N54: 59.42232946 | O54: 57.89800338 | P54: 56.33376546 | Q54: 54.72674413 | R54: 53.07390258 | S54: 51.37202889 | T54: 49.61772566 | U54: 47.80739889 | V54: 45.93724632 | W54: 44.00324502 | X54: 42.00113824 | Y54: 39.92642152 | Z54: 37.77432794 | AA54: 35.53981251 | AB54: 33.21753565 | AC54: 30.80184565 | AD54: 28.28676014 | AE54: 25.6659464 | AF54: 22.93270059 | AG54: 20.07992567 | AH54: 17.10010804 | AI54: 13.98529279 | AJ54: 10.72705752 | AK54: 7.316484525 | AL54: 3.744131429
C55: Add: Repayment of Subprime Debt | I55: =I27 -> 10.37467544 | J55: =J27 -> 10.87888467 | K55: 11.40759846 | L55: 11.96200775 | M55: 12.54336132 | N55: 13.28718265 | O55: 14.07511258 | P55: 14.90976676 | Q55: 15.79391593 | R55: 16.73049514 | S55: 17.7226135 | T55: 18.77356448 | U55: 19.88683686 | V55: 21.06612628 | W55: 22.31534757 | X55: 23.63864768 | Y55: 25.04041949 | Z55: 26.52531637 | AA55: 28.09826763 | AB55: 29.7644949 | AC55: 31.52952944 | AD55: 33.39923054 | AE55: 35.37980491 | AF55: 37.47782734 | AG55: 39.7002625 | AH55: 42.05448807 | AI55: 44.54831921 | AJ55: 47.19003454 | AK55: 49.98840359 | AL55: 52.95271592
C56: Add: Recoveries | I56: =I34 -> FALSE | J56: =J34 -> FALSE | K56: 0 | L56: 12 | M56: 11.63550389 | N56: 11.2722472 | O56: 10.90991108 | P56: 10.54816876 | Q56: 5.093342525 | R56: 4.962686004 | S56: 4.828608468 | T56: 4.690863783 | U56: 4.54919165 | V56: 4.403316762 | W56: 4.252947914 | X56: 4.097777048 | Y56: 3.937478256 | Z56: 3.771706716 | AA56: 3.600097563 | AB56: 3.422264701 | AC56: 3.237799537 | AD56: 3.046269644 | AE56: 2.847217342 | AF56: 2.640158199 | AG56: 2.42457944 | AH56: 2.199938263 | AI56: 1.96566005 | AJ56: 1.721136486 | AK56: 1.465723546 | AL56: 1.198739382
D57: Total Reveneues | I57: =SUM(I54:I56) -> 80.37467544 | J57: =SUM(J54:J56) -> 78.75265739 | K57: 77.1623738 | L57: 87.60315569 | M57: 85.70984966 | N57: 83.98175931 | O57: 82.88302703 | P57: 81.79170098 | Q57: 75.61400259 | R57: 74.76708372 | S57: 73.92325086 | T57: 73.08215392 | U57: 72.24342739 | V57: 71.40668936 | W57: 70.5715405 | X57: 69.73756297 | Y57: 68.90431926 | Z57: 68.07135102 | AA57: 67.2381777 | AB57: 66.40429525 | AC57: 65.56917463 | AD57: 64.73226032 | AE57: 63.89296865 | AF57: 63.05068613 | AG57: 62.20476761 | AH57: 61.35453437 | AI57: 60.49927205 | AJ57: 59.63822855 | AK57: 58.77061166 | AL57: 57.89558673
C58: Less: Interest Paid | I58: =MAX(MIN(I57,I51),0) -> 33.705 | J58: =MAX(MIN(J57,J51),0) -> 32.07156136 | K58: 30.437723 | L58: 28.80236022 | M58: 26.74433238 | N58: 24.68053927 | O58: 22.60499657 | P58: 20.49526551 | Q58: 18.34989027 | R58: 16.34564633 | S58: 14.30089603 | T58: 12.21411361 | U58: 10.0837322 | V58: 7.908142864 | W58: 5.685693736 | X58: 3.414689099 | Y58: 1.093388514 | Z58: 0 | AA58: 0 | AB58: 0 | AC58: 0 | AD58: 0 | AE58: 0 | AF58: 0 | AG58: 0 | AH58: 0 | AI58: 0 | AJ58: 0 | AK58: 0 | AL58: 0
D59: Cash Flow After Interest | I59: =I57-I58 -> 46.66967544 | J59: =J57-J58 -> 46.68109603 | K59: 46.7246508 | L59: 58.80079547 | M59: 58.96551728 | N59: 59.30122003 | O59: 60.27803046 | P59: 61.29643547 | Q59: 57.26411232 | R59: 58.42143739 | S59: 59.62235484 | T59: 60.86804032 | U59: 62.1596952 | V59: 63.4985465 | W59: 64.88584676 | X59: 66.32287387 | Y59: 67.81093075 | Z59: 68.07135102 | AA59: 67.2381777 | AB59: 66.40429525 | AC59: 65.56917463 | AD59: 64.73226032 | AE59: 63.89296865 | AF59: 63.05068613 | AG59: 62.20476761 | AH59: 61.35453437 | AI59: 60.49927205 | AJ59: 59.63822855 | AK59: 58.77061166 | AL59: 57.89558673
C60: Less: Repayment | I60: =MAX(MIN(I59,I47),0) -> 46.66967544 | J60: =MAX(MIN(J59,J47),0) -> 46.68109603 | K60: 46.7246508 | L60: 58.80079547 | M60: 58.96551728 | N60: 59.30122003 | O60: 60.27803046 | P60: 61.29643547 | Q60: 57.26411232 | R60: 58.42143739 | S60: 59.62235484 | T60: 60.86804032 | U60: 62.1596952 | V60: 63.4985465 | W60: 64.88584676 | X60: 66.32287387 | Y60: 31.23967183 | Z60: 0 | AA60: 0 | AB60: 0 | AC60: 0 | AD60: 0 | AE60: 0 | AF60: 0 | AG60: 0 | AH60: 0 | AI60: 0 | AJ60: 0 | AK60: 0 | AL60: 0
D61: Cash Flow After Repayment | I61: =I59-I60 -> 0 | J61: =J59-J60 -> 0 | K61: 0 | L61: 0 | M61: 0 | N61: 0 | O61: 0 | P61: 0 | Q61: 0 | R61: 0 | S61: 0 | T61: 0 | U61: 0 | V61: 0 | W61: 0 | X61: 0 | Y61: 36.57125892 | Z61: 68.07135102 | AA61: 67.2381777 | AB61: 66.40429525 | AC61: 65.56917463 | AD61: 64.73226032 | AE61: 63.89296865 | AF61: 63.05068613 | AG61: 62.20476761 | AH61: 61.35453437 | AI61: 60.49927205 | AJ61: 59.63822855 | AK61: 58.77061166 | AL61: 57.89558673
C62: Dividends | I62: =I61 -> 0 | J62: =J61 -> 0 | K62: 0 | L62: 0 | M62: 0 | N62: 0 | O62: 0 | P62: 0 | Q62: 0 | R62: 0 | S62: 0 | T62: 0 | U62: 0 | V62: 0 | W62: 0 | X62: 0 | Y62: 36.57125892 | Z62: 68.07135102 | AA62: 67.2381777 | AB62: 66.40429525 | AC62: 65.56917463 | AD62: 64.73226032 | AE62: 63.89296865 | AF62: 63.05068613 | AG62: 62.20476761 | AH62: 61.35453437 | AI62: 60.49927205 | AJ62: 59.63822855 | AK62: 58.77061166 | AL62: 57.89558673
C64: Equity cash Flow | H64: =-H43 -> -107 | I64: =I62 -> 0 | J64: =J62 -> 0 | K64: 0 | L64: 0 | M64: 0 | N64: 0 | O64: 0 | P64: 0 | Q64: 0 | R64: 0 | S64: 0 | T64: 0 | U64: 0 | V64: 0 | W64: 0 | X64: 0 | Y64: 36.57125892 | Z64: 68.07135102 | AA64: 67.2381777 | AB64: 66.40429525 | AC64: 65.56917463 | AD64: 64.73226032 | AE64: 63.89296865 | AF64: 63.05068613 | AG64: 62.20476761 | AH64: 61.35453437 | AI64: 60.49927205 | AJ64: 59.63822855 | AK64: 58.77061166 | AL64: 57.89558673
C65: Equitty IRR | H65: =IFERROR(IRR(64:64),FALSE) -> 0.09531784769
C67: Debt Cash Flow | H67: =-H42 -> -963 | I67: =I60+I58 -> 80.37467544 | J67: =J60+J58 -> 78.75265739 | K67: 77.1623738 | L67: 87.60315569 | M67: 85.70984966 | N67: 83.98175931 | O67: 82.88302703 | P67: 81.79170098 | Q67: 75.61400259 | R67: 74.76708372 | S67: 73.92325086 | T67: 73.08215392 | U67: 72.24342739 | V67: 71.40668936 | W67: 70.5715405 | X67: 69.73756297 | Y67: 32.33306034 | Z67: 0 | AA67: 0 | AB67: 0 | AC67: 0 | AD67: 0 | AE67: 0 | AF67: 0 | AG67: 0 | AH67: 0 | AI67: 0 | AJ67: 0 | AK67: 0 | AL67: 0
C68: Debt IRR | H68: =IRR(67:67) -> 0.035

Sheet Model
A1: Assumptions
B2: Subprime Debt Assumptions
D3: Rate Charged on Sub-prime Loans | E3: 0.07
D4: Subprime Repayment Years | E4: 30
D5: Initial PD | E5: 0.05
D6: Years of High Default | E6: 5
D7: Stable PD | E7: 0.01
D8: Delay in Recoveries | E8: 3
D9: LGD | E9: 0.3
B10: Financial Structure Assumptions
D11: Amount of Subprime Loans | E11: 1000
D12: Loans/Equity | E12: 5
D13: Equity to Assets | E13: =1/E12 -> 0.2
D14: Interest Rate on Top-tier Debt | E14: 0.035
D15: Fees | E15: 0.07

Sheet Sheet2
